fUST/lending_fUST_20250905
["ID","MTS","AMOUNT","RATE_DAILY","PERIOD"]
[383629036,1757047416920,422.17,0.00012329,2]
[383629037,1757047424759,169.45773444,0.00013912,2]
[383629038,1757047427308,351.81,0.00012329,2]
[383629039,1757047433529,258.64889508,0.00013912,2]
[383629040,1757047437933,293.17,0.00012329,2]
[383629041,1757047448347,244.31,0.00012329,2]
[383629042,1757047458883,203.59,0.00012329,2]
[383629043,1757047469289,169.66,0.00012329,2]
[383629044,1757047479930,848.33,0.00012329,2]
[383629046,1757047535343,3444.9521174,0.0001349,2]
[383629047,1757047560320,156.2,0.00014,2]
[383629048,1757047693749,386.08465931,0.00013962,2]
[383629049,1757047716485,386.08465931,0.00013962,2]
[383629050,1757047739291,386.08465931,0.00013962,2]
[383629051,1757047762261,341.74602207,0.00013962,2]
[383629085,1757047831903,-386.08465931,0.00014103,2]
[383629087,1757047831913,-134.31343857,0.00014388,2]
[383629089,1757047831924,-251.77122074,0.00014388,2]
[383629091,1757047831934,-258.64889508,0.0001439,2]
[383629093,1757047831943,-248.37487353,0.00014473,2]
[383629095,1757047831953,-500.0,0.00014473,2]
[383629097,1757047831962,-300.0,0.00014485,2]
[383629099,1757047831972,-300.0,0.00014485,2]
[383629101,1757047831981,-300.0,0.00014485,2]
[383629103,1757047831990,-300.0,0.00014485,2]
[383629105,1757047832000,-1200.0,0.00014485,2]
[383629107,1757047832009,-480.0,0.00014486,2]
[383629108,1757047832018,-480.0,0.00014486,2]
[383629109,1757047832028,-480.28621316,0.00014486,2]
[383629110,1757047832037,-2175.97,0.00014486,2]
[383629111,1757047832046,-480.0,0.00014486,2]
[383629112,1757047832055,-480.0,0.00014486,2]
[383629113,1757047832064,-493.9,0.00014486,2]
[383629114,1757047832073,-480.0,0.00014486,2]
[383629115,1757047832082,-480.0,0.00014486,2]
[383629116,1757047832092,-752.61,0.00014486,2]
[383629117,1757047832101,-480.0,0.00014487,2]
[383629118,1757047832111,-480.0,0.00014487,2]
[383629119,1757047832120,-480.0,0.00014487,2]
[383629120,1757047832130,-483.63718701,0.00014487,2]
[383629121,1757047832139,-480.0,0.00014487,2]
[383629122,1757047832149,-480.0,0.00014487,2]
[383629123,1757047832158,-184.51952853,0.00014487,2]
[383629124,1757047832168,-273.24502452,0.00014487,2]
[383629125,1757047832180,-206.75497548,0.00014487,2]
[383629126,1757047832189,-92.98712876,0.00014487,2]
[383629131,1757047837825,-480.0,0.00014341,2]
[383629132,1757047837836,-480.0,0.00014486,2]
[383629133,1757047837847,-95.4331394,0.00014487,2]
[383629134,1757047837859,-480.0,0.00014487,2]
[383629135,1757047837871,-432.61777821,0.00014487,2]
[383629136,1757047837887,-47.38222179,0.00014487,2]
[383629137,1757047837899,-480.0,0.00014487,2]
[383629138,1757047837912,-480.0,0.00014487,2]
[383629139,1757047837925,-34.18778071,0.00014487,2]
[383629141,1757047837952,-357.39757858,0.00014487,2]
[383629153,1757047843053,-480.0,0.00014486,2]
[383629154,1757047843066,-480.0,0.00014486,2]
[383629155,1757047843077,-88.41464071,0.00014487,2]
[383629156,1757047843089,-480.0,0.00014487,2]
[383629157,1757047843100,-480.0,0.00014487,2]
[383629158,1757047843112,-422.15046608,0.00014487,2]
[383629159,1757047843123,-480.0,0.00014487,2]
[383629160,1757047843134,-480.0,0.00014487,2]
[383629161,1757047843146,-792.22,0.00014487,2]
[383629162,1757047843157,-480.0,0.00014487,2]
[383629163,1757047843168,-480.0,0.00014487,2]
[383629164,1757047843180,-1325.82,0.00014487,2]
[383629165,1757047843191,-480.0,0.00014487,2]
[383629166,1757047843203,-480.0,0.00014487,2]
[383629167,1757047843214,-480.0,0.00014487,2]
[383629168,1757047843225,-480.0,0.00014487,2]
[383629169,1757047843236,-480.0,0.00014487,2]
[383629170,1757047843248,-1029.84,0.00014487,2]
[383629171,1757047843259,-480.0,0.00014487,2]
[383629172,1757047843271,-480.0,0.00014487,2]
[383629173,1757047843284,-480.0,0.00014487,2]
[383629174,1757047843296,-480.0,0.00014487,2]
[383629175,1757047843308,-480.0,0.00014487,2]
[383629176,1757047843319,-480.0,0.00014487,2]
[383629179,1757047843332,-480.0,0.00014487,2]
[383629180,1757047843343,-480.0,0.00014487,2]
[383629181,1757047843354,-480.0,0.00014487,2]
[383629182,1757047843363,-480.0,0.00014487,2]
[383629183,1757047843374,-480.0,0.00014487,2]
[383629184,1757047843383,-548.39,0.00014487,2]
[383629185,1757047843393,-480.0,0.00014487,2]
[383629186,1757047843560,-480.0,0.00014487,2]
[383629187,1757047843570,-480.0,0.00014487,2]
[383629188,1757047843579,-480.0,0.00014487,2]
[383629189,1757047843588,-994.48,0.00014487,2]
[383629190,1757047843597,-480.0,0.00014487,2]
[383629191,1757047843607,-480.0,0.00014487,2]
[383629192,1757047843615,-1181.81,0.00014487,2]
[383629193,1757047843623,-480.0,0.00014487,2]
[383629194,1757047843632,-480.0,0.00014487,2]
[383629195,1757047843640,-480.0,0.00014487,2]
[383629196,1757047843649,-480.0,0.00014487,2]
[383629197,1757047843658,-480.0,0.00014487,2]
[383629198,1757047843666,-480.0,0.00014487,2]
[383629199,1757047843675,-480.0,0.00014487,2]
[383629200,1757047843683,-480.0,0.00014487,2]
[383629201,1757047843692,-550.21,0.00014487,2]
[383629202,1757047843701,-480.0,0.00014487,2]
[383629203,1757047843709,-480.0,0.00014487,2]
[383629204,1757047843718,-480.0,0.00014487,2]
[383629205,1757047843726,-480.0,0.00014487,2]
[383629206,1757047843735,-480.0,0.00014487,2]
[383629207,1757047843744,-480.0,0.00014487,2]
[383629208,1757047843752,-480.0,0.00014487,2]
[383629209,1757047843761,-480.0,0.00014487,2]
[383629210,1757047843770,-480.0,0.00014487,2]
[383629211,1757047843778,-1146.45,0.00014487,2]
[383629212,1757047843787,-5685.80580284,0.00014487,2]
[383629213,1757047843795,-1726.19,0.00014488,2]
[383629214,1757047843804,-480.0,0.00014488,2]
[383629215,1757047843812,-480.0,0.00014488,2]
[383629216,1757047843820,-480.0,0.00014488,2]
[383629217,1757047843828,-480.0,0.00014488,2]
[383629218,1757047843836,-605.19,0.00014488,2]
[383629219,1757047843845,-3418.0,0.00014488,2]
[383629220,1757047843855,-480.0,0.00014488,2]
[383629221,1757047843864,-480.0,0.00014488,2]
[383629222,1757047843873,-662.53,0.00014488,2]
[383629223,1757047843881,-480.0,0.00014488,2]
[383629224,1757047843890,-584.92,0.00014488,2]
[383629225,1757047843898,-480.0,0.00014488,2]
[383629226,1757047843906,-929.02019317,0.00014488,2]
[383629227,1757047844044,-1509.27980683,0.00014488,2]
[383629228,1757047844054,-480.0,0.00014488,2]
[383629229,1757047844064,-480.0,0.00014488,2]
[383629230,1757047844073,-480.0,0.00014488,2]
[383629231,1757047844083,-707.21,0.00014488,2]
[383629232,1757047844093,-480.0,0.00014488,2]
[383629233,1757047844104,-567.08,0.00014488,2]
[383629234,1757047844113,-6534.28,0.00014488,2]
[383629235,1757047844123,-719.97,0.00014488,2]
[383629236,1757047844133,-603.71,0.00014488,2]
[383629237,1757047844142,-480.0,0.00014488,2]
[383629238,1757047844152,-480.0,0.00014488,2]
[383629239,1757047844161,-481.718405,0.00014488,2]
[383629240,1757047844171,-480.0,0.00014488,2]
[383629241,1757047844181,-1244.31,0.00014488,2]
[383629242,1757047844190,-535.64,0.00014488,2]
[383629243,1757047844199,-256.66618084,0.00014488,2]
[383629244,1757047844209,-180.17824572,0.00014488,2]
[383629245,1757047844218,-500.0,0.00014488,2]
[383629246,1757047844227,-500.0,0.00014488,2]
[383629247,1757047844237,-472.84444401,0.00014488,2]
[383629248,1757047844246,-500.0,0.00014488,2]
[383629249,1757047844256,-500.0,0.00014488,2]
[383629250,1757047844265,-253.5934727,0.00014488,2]
[383629251,1757047844275,-500.0,0.00014488,2]
[383629252,1757047844287,-480.0,0.00014488,2]
[383629253,1757047844297,-168.0,0.00014489,2]
[383629254,1757047844307,-322.33222539,0.00014489,2]
[383629255,1757047844316,-480.0,0.00014489,2]
[383629256,1757047844326,-480.0,0.00014489,2]
[383629257,1757047844335,-480.0,0.00014489,2]
[383629258,1757047844345,-480.0,0.00014489,2]
[383629259,1757047844354,-480.0,0.00014489,2]
[383629260,1757047844364,-480.0,0.00014489,2]
[383629261,1757047844373,-480.0,0.00014489,2]
[383629262,1757047844383,-480.0,0.00014489,2]
[383629263,1757047844392,-480.0,0.00014489,2]
[383629264,1757047844402,-480.0,0.00014489,2]
[383629265,1757047844411,-480.0,0.00014489,2]
[383629266,1757047844420,-480.0,0.00014489,2]
[383629267,1757047844430,-480.0,0.00014489,2]
[383629268,1757047844439,-480.0,0.00014489,2]
[383629269,1757047844448,-480.0,0.00014489,2]
[383629270,1757047844457,-480.0,0.00014489,2]
[383629271,1757047844466,-480.0,0.00014489,2]
[383629272,1757047844476,-480.0,0.00014489,2]
[383629273,1757047844485,-480.0,0.00014489,2]
[383629274,1757047844495,-480.0,0.00014489,2]
[383629275,1757047844505,-480.0,0.00014489,2]
[383629276,1757047844514,-480.0,0.00014489,2]
[383629277,1757047844523,-480.0,0.00014489,2]
[383629278,1757047844533,-480.0,0.00014489,2]
[383629279,1757047844542,-480.0,0.00014489,2]
[383629280,1757047844551,-480.0,0.00014489,2]
[383629281,1757047844560,-480.0,0.00014489,2]
[383629282,1757047844570,-485.06,0.00014489,2]
[383629283,1757047844579,-480.0,0.00014489,2]
[383629284,1757047844589,-480.0,0.00014489,2]
[383629285,1757047844599,-480.0,0.00014489,2]
[383629286,1757047844608,-480.0,0.00014489,2]
[383629287,1757047844618,-480.0,0.00014489,2]
[383629288,1757047844627,-261.97379651,0.00014489,2]
[383629291,1757047872837,10000.0,0.00025,30]
[383629292,1757047879288,333.16,0.00012329,2]
[383629293,1757047886783,10000.0,0.00025,30]
[383629294,1757047900153,383.05,0.00012329,2]
[383629295,1757047909531,10000.0,0.00025,30]
[383629296,1757047910538,554.69,0.00012329,2]
[383629297,1757047931453,462.24,0.00012329,2]
[383629298,1757047937071,10000.0,0.00025,30]
[383629299,1757047942262,385.2,0.00012329,2]
[383629301,1757047963363,588.5,0.00012329,2]
[383629302,1757047973781,222.91,0.00012329,2]
[383629303,1757047984166,340.56,0.00012329,2]
[383629304,1757048005553,154.8,0.00012329,2]
[383629305,1757048015753,619.24,0.00012329,2]
[383629306,1757048058803,480.0,0.00013915,2]
[383629307,1757048081904,480.0,0.00013915,2]
[383629308,1757048087481,175.21,0.00012329,2]
[383629309,1757048097876,876.08,0.00012329,2]
[383629310,1757048104065,480.0,0.00013915,2]
[383629316,1757048126921,480.0,0.00013915,2]
[383629317,1757048149877,480.0,0.00013915,2]
[383629319,1757048172461,480.0,0.00013915,2]
[383629321,1757048197418,480.0,0.00013915,2]
[383629322,1757048219513,480.0,0.00013915,2]
[383629324,1757048227809,656.387759,0.00013699,2]
[383629325,1757048235363,480.0,0.00013915,2]
[383629326,1757048259173,250.0,0.00013951,2]
[383629327,1757048282742,250.0,0.00013951,2]
[383629328,1757048305078,250.0,0.00013951,2]
[383629329,1757048328664,250.0,0.00013951,2]
[383629330,1757048352580,250.0,0.00013951,2]
[383629331,1757048375228,250.0,0.00013951,2]
[383629332,1757048398084,250.0,0.00013951,2]
[383629334,1757048421172,250.0,0.00013951,2]
[383629335,1757048445426,250.0,0.00013966,2]
[383629336,1757048468487,250.0,0.00013966,2]
[383629337,1757048490824,250.0,0.00013966,2]
[383629338,1757048513400,250.0,0.00013966,2]
[383629339,1757048536374,250.0,0.00013966,2]
[383629340,1757048558755,250.0,0.00013966,2]
[383629341,1757048581692,250.0,0.00013966,2]
[383629342,1757048605665,250.0,0.00013966,2]
[383629343,1757048614117,250.0,0.00013966,2]
[383629344,1757048718787,250.0,0.00013939,2]
[383629345,1757048741710,250.0,0.00013939,2]
[383629346,1757048765159,250.0,0.00013939,2]
[383629347,1757048787897,250.0,0.00013939,2]
[383629348,1757048810869,250.0,0.00013939,2]
[383629349,1757048820129,250.0,0.00013939,2]
[383629350,1757048835661,250.0,0.00013939,2]
[383629351,1757048843499,250.0,0.00013939,2]
[383629352,1757048893207,666.0,0.0001349,2]
[383629353,1757048893842,250.0,0.00013836,2]
[383629355,1757049011918,26897.92192572,0.00013352,2]
[383629356,1757049011949,9394.27360398,0.00013352,2]
[383629364,1757049032160,-374.56111628,0.00014004,2]
[383629370,1757049038004,-1301.249751,0.00014004,2]
[383629371,1757049038015,-270.13541551,0.00014004,2]
[383629376,1757049038058,-874.54151423,0.00014004,2]
[383629378,1757049038069,-1105.13787327,0.00014004,2]
[383629379,1757049038079,-3736.80371265,0.00014145,2]
[383629383,1757049038114,-188.82195764,0.00014145,2]
[383629385,1757049038123,-1200.0,0.00014286,2]
[383629387,1757049038132,-501.78093821,0.00014287,2]
[383629388,1757049038141,-300.0,0.00014287,2]
[383629390,1757049038150,-493.29146467,0.00014356,2]
[383629393,1757049038169,-8.48947354,0.00014356,2]
[383629395,1757049038178,-187.78006525,0.00014379,2]
[383629397,1757049038189,-1200.0,0.00014384,2]
[383629399,1757049038198,-480.0,0.00014385,2]
[383629401,1757049038207,-480.0,0.00014385,2]
[383629403,1757049038217,-2110.63,0.00014385,2]
[383629404,1757049038226,-480.0,0.00014385,2]
[383629406,1757049038235,-480.0,0.00014385,2]
[383629408,1757049038244,-493.32,0.00014385,2]
[383629409,1757049038254,-741.25,0.00014385,2]
[383629411,1757049038264,-480.0,0.00014385,2]
[383629413,1757049038273,-480.0,0.00014385,2]
[383629415,1757049038283,-480.0,0.00014385,2]
[383629416,1757049038292,-330.31604934,0.00014386,2]
[383629418,1757049038302,-1926.14941561,0.00014386,2]
[383629420,1757049038311,-1691.59,0.00014386,2]
[383629422,1757049038321,-480.0,0.00014386,2]
[383629424,1757049038330,-1293.63,0.00014386,2]
[383629426,1757049038340,-599.97,0.00014386,2]
[383629428,1757049038349,-480.0,0.00014386,2]
[383629429,1757049038358,-986.93,0.00014386,2]
[383629431,1757049038367,-480.0,0.00014386,2]
[383629433,1757049038377,-480.0,0.00014386,2]
[383629435,1757049038387,-480.0,0.00014386,2]
[383629437,1757049038396,-580.55,0.00014386,2]
[383629439,1757049038405,-480.0,0.00014386,2]
[383629440,1757049038415,-480.0,0.00014386,2]
[383629441,1757049038424,-480.0,0.00014386,2]
[383629442,1757049038434,-480.0,0.00014386,2]
[383629443,1757049038443,-480.0,0.00014386,2]
[383629444,1757049038452,-480.0,0.00014386,2]
[383629445,1757049038462,-545.54,0.00014386,2]
[383629446,1757049038471,-973.04,0.00014386,2]
[383629447,1757049038480,-480.0,0.00014386,2]
[383629448,1757049038490,-480.0,0.00014386,2]
[383629449,1757049038499,-480.0,0.00014386,2]
[383629450,1757049038509,-697.75,0.00014386,2]
[383629451,1757049038519,-480.0,0.00014386,2]
[383629452,1757049038528,-1152.57,0.00014386,2]
[383629453,1757049038538,-615.01,0.00014386,2]
[383629454,1757049038547,-480.0,0.00014386,2]
[383629455,1757049038557,-709.97,0.00014386,2]
[383629456,1757049038567,-480.0,0.00014386,2]
[383629457,1757049038576,-480.0,0.00014386,2]
[383629458,1757049038586,-480.0,0.00014386,2]
[383629459,1757049038597,-480.0,0.00014386,2]
[383629460,1757049038606,-480.0,0.00014386,2]
[383629461,1757049038616,-480.0,0.00014386,2]
[383629462,1757049038626,-547.28,0.00014386,2]
[383629463,1757049038635,-480.0,0.00014386,2]
[383629464,1757049038645,-480.0,0.00014386,2]
[383629465,1757049038654,-480.0,0.00014386,2]
[383629466,1757049038664,-533.33,0.00014386,2]
[383629467,1757049038674,-480.0,0.00014386,2]
[383629468,1757049038683,-1128.96,0.00014386,2]
[383629469,1757049038693,-500.0,0.00014387,2]
[383629470,1757049038703,-442.85877791,0.00014387,2]
[383629471,1757049038712,-500.0,0.00014387,2]
[383629472,1757049038721,-500.0,0.00014387,2]
[383629473,1757049038736,-500.0,0.00014387,2]
[383629474,1757049038746,-500.0,0.00014387,2]
[383629475,1757049038755,-500.0,0.00014387,2]
[383629476,1757049038764,-500.0,0.00014387,2]
[383629477,1757049038773,-500.0,0.00014387,2]
[383629478,1757049038783,-500.0,0.00014387,2]
[383629479,1757049038912,-500.0,0.00014387,2]
[383629480,1757049038923,-500.0,0.00014387,2]
[383629481,1757049038933,-500.0,0.00014387,2]
[383629482,1757049038942,-500.0,0.00014387,2]
[383629483,1757049038951,-500.0,0.00014387,2]
[383629484,1757049038960,-500.0,0.00014387,2]
[383629485,1757049038969,-265.65966676,0.00014387,2]
[383629486,1757049038979,-500.0,0.00014387,2]
[383629487,1757049038988,-500.0,0.00014387,2]
[383629488,1757049038998,-500.0,0.00014387,2]
[383629489,1757049039007,-500.0,0.00014387,2]
[383629490,1757049039017,-804.22107838,0.00014387,2]
[383629491,1757049039026,-804.22107838,0.00014387,2]
[383629492,1757049039036,-804.22107838,0.00014387,2]
[383629493,1757049039045,-804.22107838,0.00014387,2]
[383629494,1757049039055,-804.22107838,0.00014387,2]
[383629495,1757049039064,-804.22107838,0.00014387,2]
[383629496,1757049039073,-804.22107838,0.00014387,2]
[383629497,1757049039083,-804.22107838,0.00014387,2]
[383629498,1757049039092,-804.22107838,0.00014387,2]
[383629499,1757049039101,-804.22107838,0.00014387,2]
[383629500,1757049039111,-804.22107838,0.00014387,2]
[383629501,1757049039120,-310.27081167,0.00014387,2]
[383629502,1757049039130,-480.0,0.00014387,2]
[383629503,1757049039139,-480.0,0.00014387,2]
[383629504,1757049039149,-490.4331105,0.00014387,2]
[383629505,1757049039158,-237.67976642,0.00014387,2]
[383629506,1757049039167,-480.0,0.00014387,2]
[383629507,1757049039177,-480.0,0.00014387,2]
[383629508,1757049039187,-480.0,0.00014387,2]
[383629509,1757049039197,-555.12805713,0.00014387,2]
[383629510,1757049039206,-480.0,0.00014387,2]
[383629511,1757049039215,-448.62948551,0.00014387,2]
[383629512,1757049039225,-341.6,0.00014387,2]
[383629513,1757049039234,-500.34,0.00014387,2]
[383629514,1757049039244,-480.0,0.00014387,2]
[383629515,1757049039253,-480.0,0.00014387,2]
[383629516,1757049039263,-480.0,0.00014387,2]
[383629517,1757049039272,-480.0,0.00014387,2]
[383629518,1757049039282,-554.05094237,0.00014387,2]
[383629519,1757049039291,-480.0,0.00014387,2]
[383629520,1757049039300,-480.0,0.00014387,2]
[383629521,1757049039310,-480.0,0.00014387,2]
[383629522,1757049039319,-480.0,0.00014387,2]
[383629523,1757049039328,-480.0,0.00014387,2]
[383629524,1757049039338,-759.21,0.00014387,2]
[383629525,1757049039347,-283.49,0.00014387,2]
[383629526,1757049039356,-480.0,0.00014387,2]
[383629527,1757049039366,-480.0,0.00014387,2]
[383629528,1757049039375,-557.40052192,0.00014387,2]
[383629529,1757049039385,-480.0,0.00014387,2]
[383629530,1757049039395,-480.0,0.00014387,2]
[383629531,1757049039405,-480.0,0.00014387,2]
[383629532,1757049039415,-480.0,0.00014387,2]
[383629533,1757049039424,-480.0,0.00014387,2]
[383629534,1757049039434,-480.0,0.00014387,2]
[383629535,1757049039443,-480.0,0.00014387,2]
[383629536,1757049039452,-480.0,0.00014387,2]
[383629537,1757049039462,-480.0,0.00014387,2]
[383629538,1757049039471,-480.0,0.00014387,2]
[383629539,1757049039480,-480.0,0.00014387,2]
[383629540,1757049039490,-480.0,0.00014387,2]
[383629541,1757049039500,-480.0,0.00014387,2]
[383629542,1757049039509,-480.0,0.00014387,2]
[383629543,1757049039518,-480.0,0.00014387,2]
[383629544,1757049039529,-484.85,0.00014387,2]
[383629545,1757049039538,-480.0,0.00014387,2]
[383629546,1757049039548,-178.77385513,0.00014387,2]
[383629547,1757049039557,-480.0,0.00014387,2]
[383629548,1757049039567,-480.0,0.00014387,2]
[383629549,1757049039577,-480.0,0.00014387,2]
[383629550,1757049039587,-480.0,0.00014387,2]
[383629551,1757049039596,-480.0,0.00014387,2]
[383629552,1757049039605,-480.0,0.00014387,2]
[383629553,1757049039614,-480.0,0.00014387,2]
[383629554,1757049039624,-480.0,0.00014387,2]
[383629555,1757049039634,-480.0,0.00014387,2]
[383629556,1757049039643,-480.0,0.00014387,2]
[383629557,1757049039652,-271.47433126,0.00014387,2]
[383629558,1757049039661,-480.0,0.00014387,2]
[383629559,1757049039671,-456.33390729,0.00014387,2]
[383629560,1757049039680,-480.0,0.00014387,2]
[383629561,1757049039690,-480.0,0.00014387,2]
[383629562,1757049039699,-480.0,0.00014387,2]
[383629563,1757049039709,-480.0,0.00014387,2]
[383629564,1757049039718,-480.0,0.00014387,2]
[383629565,1757049039727,-480.0,0.00014387,2]
[383629566,1757049039738,-480.0,0.00014387,2]
[383629567,1757049039749,-480.0,0.00014387,2]
[383629568,1757049039759,-480.0,0.00014387,2]
[383629569,1757049039768,-483.70607168,0.00014387,2]
[383629570,1757049039777,-480.0,0.00014387,2]
[383629571,1757049039786,-480.0,0.00014387,2]
[383629572,1757049039795,-480.0,0.00014387,2]
[383629573,1757049039804,-480.0,0.00014387,2]
[383629574,1757049039813,-480.0,0.00014387,2]
[383629575,1757049039822,-480.0,0.00014387,2]
[383629576,1757049039831,-480.0,0.00014387,2]
[383629577,1757049039841,-480.0,0.00014387,2]
[383629578,1757049039852,-480.0,0.00014387,2]
[383629579,1757049039862,-491.57811052,0.00014387,2]
[383629580,1757049039871,-480.0,0.00014387,2]
[383629581,1757049039880,-480.0,0.00014387,2]
[383629582,1757049039891,-480.0,0.00014387,2]
[383629583,1757049039900,-507.5,0.00014387,2]
[383629584,1757049039911,-480.0,0.00014387,2]
[383629585,1757049039920,-480.0,0.00014387,2]
[383629586,1757049039933,-481.77535468,0.00014387,2]
[383629587,1757049039943,-480.0,0.00014387,2]
[383629588,1757049039952,-482.0053665,0.00014387,2]
[383629589,1757049039961,-480.0,0.00014387,2]
[383629590,1757049039971,-480.0,0.00014387,2]
[383629591,1757049039979,-480.0,0.00014387,2]
[383629592,1757049039989,-480.0,0.00014387,2]
[383629593,1757049039998,-480.0,0.00014387,2]
[383629594,1757049040008,-3336.34,0.00014387,2]
[383629595,1757049040024,-480.0,0.00014387,2]
[383629596,1757049040034,-480.0,0.00014387,2]
[383629597,1757049040043,-480.0,0.00014387,2]
[383629598,1757049040052,-483.19625541,0.00014387,2]
[383629599,1757049040061,-506.5,0.00014387,2]
[383629600,1757049040070,-480.0,0.00014387,2]
[383629601,1757049040079,-480.0,0.00014387,2]
[383629602,1757049040088,-548.62,0.00014387,2]
[383629603,1757049040097,-654.93,0.00014387,2]
[383629604,1757049040106,-496.49,0.00014387,2]
[383629605,1757049040116,-1220.71,0.00014387,2]
[383629606,1757049040127,-480.0,0.00014387,2]
[383629607,1757049040137,-480.0,0.00014387,2]
[383629608,1757049040146,-543.33,0.00014387,2]
[383629609,1757049040155,-480.0,0.00014387,2]
[383629610,1757049040165,-480.0,0.00014387,2]
[383629611,1757049040174,-480.0,0.00014387,2]
[383629612,1757049040183,-480.0,0.00014387,2]
[383629613,1757049040192,-1723.69,0.00014387,2]
[383629614,1757049040203,-480.0,0.00014387,2]
[383629615,1757049040212,-480.0,0.00014387,2]
[383629616,1757049040222,-480.0,0.00014387,2]
[383629617,1757049040231,-483.29408813,0.00014387,2]
[383629618,1757049040241,-480.0,0.00014387,2]
[383629619,1757049040250,-2404.45,0.00014387,2]
[383629620,1757049040259,-950.04,0.00014387,2]
[383629621,1757049040269,-480.0,0.00014387,2]
[383629622,1757049040279,-480.0,0.00014387,2]
[383629623,1757049040290,-480.0,0.00014387,2]
[383629624,1757049040299,-264.46885906,0.00014387,2]
[383629625,1757049040311,-480.0,0.00014387,2]
[383629626,1757049040321,-480.0,0.00014387,2]
[383629627,1757049040331,-480.0,0.00014387,2]
[383629628,1757049040339,-480.0,0.00014387,2]
[383629629,1757049040349,-880.95,0.00014387,2]
[383629630,1757049040358,-480.0,0.00014387,2]
[383629631,1757049040368,-6282.02,0.00014387,2]
[383629632,1757049040378,-480.00903298,0.00014387,2]
[383629633,1757049040389,-480.0,0.00014387,2]
[383629634,1757049040399,-2818.8,0.00014387,2]
[383629635,1757049040408,-480.0,0.00014387,2]
[383629636,1757049040418,-480.0,0.00014387,2]
[383629637,1757049040427,-578.56,0.00014387,2]
[383629638,1757049040437,-480.0,0.00014387,2]
[383629639,1757049040446,-480.0,0.00014387,2]
[383629640,1757049040455,-485.48523707,0.00014387,2]
[383629641,1757049040465,-480.0,0.00014387,2]
[383629642,1757049040474,-480.0,0.00014387,2]
[383629643,1757049040483,-1315.17,0.00014387,2]
[383629644,1757049040492,-480.0,0.00014387,2]
[383629645,1757049040502,-480.0,0.00014387,2]
[383629646,1757049040511,-480.0,0.00014387,2]
[383629647,1757049040520,-1212.47,0.00014387,2]
[383629648,1757049040529,-802.84,0.00014387,2]
[383629649,1757049040538,-480.0,0.00014387,2]
[383629650,1757049040547,-480.0,0.00014387,2]
[383629651,1757049040557,-480.0,0.00014387,2]
[383629652,1757049040566,-480.0,0.00014387,2]
[383629653,1757049040576,-480.0,0.00014387,2]
[383629654,1757049040585,-550.03846207,0.00014387,2]
[383629655,1757049040595,-480.0,0.00014387,2]
[383629656,1757049040604,-482.1874246,0.00014387,2]
[383629657,1757049040613,-480.0,0.00014387,2]